Cogmind - Beta 12 @@@ ROGUE MODE // 2024.01.27 @ 23:28:30 Player: zkrallex Result: Core destroyed Performance ------------- Evolutions (1) 500 Regions Visited (2) 400 Robots Destroyed (25) 125 Value Destroyed (614) 614 Prototype IDs (0) 0 Alien Tech Used (0) 0 Bonus (0) 0 TOTAL SCORE: 1639 Bonus ------- None Cogmind --------- Core Integrity 0/400 Matter 300/300 Energy 100/100 System Corruption 0% Temperature Cool (0) Movement Core (150) Ox2 Location -9/Materials Parts ------- > --- POWER (1) -------- (None) > --- PROPULSION (2) --- (None) > --- UTILITY (4) ------ Cooling System Small Storage Unit > --- WEAPON (2) ------- (None) > --- INVENTORY (8) ---- (None) Peak State ------------ > --- POWER ------------ Ion Engine > --- PROPULSION ------- Aluminum Leg Aluminum Leg > --- UTILITY ---------- Improved Heat Sink Small Storage Unit Hardened Light Armor Plating Hardened Light Armor Plating > --- WEAPON ----------- Small Laser Small Laser > --- INVENTORY -------- Ion Engine Light Ion Engine Aluminum Leg Cooling System [Rating: 13] Favorites ----------- Power Ion Engine Engine Ion Engine Propulsion Aluminum Leg Leg Aluminum Leg Hover Unit Backup Propulsion I Utility Hardened Light Armor Plating Device Cooling System Storage Small Storage Unit Protection Hardened Light Armor Plating Weapon Light Assault Rifle Energy Gun Small Laser Energy Cannon Ion Cannon Ballistic Gun Light Assault Rifle Impact Weapon Hammer Build | -11 -10 -9 ------- Run | Jun Mat Mat Slots Evolved 2 | . . 2 Power . | . . . Propulsion . | . . . Utility 2 | . . 2 Weapon . | . . . Parts Attached 27 | 6 6 15 Power 3 | 1 1 1 Engine 3 | 1 1 1 Core . | . . . Reactor . | . . . Propulsion 6 | 2 1 3 Treads . | . . . Leg 4 | 2 1 1 Wheel . | . . . Hover 2 | . . 2 Flight . | . . . Utility 11 | 1 2 8 Device 6 | 1 1 4 Storage 1 | . . 1 Processor . | . . . Hackware . | . . . Protection 4 | . 1 3 Artifact . | . . . Weapon 7 | 2 2 3 Energy Gun 3 | . 2 1 Energy Cannon 1 | . . 1 Ballistic Gun 2 | 2 . . Ballistic Cannon . | . . . Launcher . | . . . Special Weapon . | . . . Impact Weapon 1 | . . 1 Slashing Weapon . | . . . Piercing Weapon . | . . . Special Melee Weapon . | . . . Unidentified Prototypes . | . . . Parts Lost 17 | . . 17 Power 2 | . . 2 Propulsion 5 | . . 5 Utility 6 | . . 6 Weapon 4 | . . 4 Highest Loss Streak 11 | . . 11 To Critical Strikes . | . . . Average Slot Usage (%) 81 | . 99 66 Engine 10 | . 14 7 Leg 19 | . 28 11 Hover 1 | . . 2 Device 13 | . 14 12 Storage 5 | . . 10 Protection 9 | . 13 6 Energy Gun 5 | . 1 8 Ballistic Gun 12 | . 26 . Impact Weapon 2 | . . 4 Naked Turns . | . . . Heaviest Build 21 | 7 15 21 Greatest Support 20 | 20 20 20 Greatest Overweight (x) 4 | . . 4 Average Overweight (x) . | . . . Largest Inventory Capacity 8 | 5 5 8 Average Capacity 6 | 5 5 7 Most Carried 6 | 2 5 6 Average Carried 3 | . 3 3 Final Capacity 8 | 5 5 8 Final Carried 5 | 2 5 . Class Distribution -------------------- 96% | Mutant 3% | Scavenger-Mutant Dominant Class ---------------- Mutant | -10/Materials Mutant | -9/Materials Resources | -11 -10 -9 ----------- Run | Jun Mat Mat Matter Collected 568 | 266 206 96 Remotely . | . . . Salvage Created 940 | 41 403 496 Parts 42 | 3 19 20 Haulers Intercepted . | . . . Recyclers Shooed 5 | . 3 2 Parts Field Recycled . | . . . Retrieved Matter . | . . . Parts Self-Destructed . | . . . Prevented . | . . . Kills | -11 -10 -9 ------- Run | Jun Mat Mat Combat Hostiles Destroyed 20 | 1 8 11 Melee 3 | . . 3 Guns 13 | 1 8 4 Cannons 1 | . . 1 Classes Destroyed 5 | 1 2 2 Recycler 3 | . 2 1 Watcher 2 | . . 2 Swarmer 6 | . 3 3 Grunt 13 | 1 5 7 Brawler 1 | . . 1 Best Kill Streak 4 | 1 4 4 Combat Bots Only 4 | 1 4 3 Max Kills in Single Turn 2 | 1 1 2 Gunslinging 1 | . . 1 Exploded . | . . . Melee 1 | . . 1 Uniques/NPCs Destroyed . | . . . Combat | -11 -10 -9 -------- Run | Jun Mat Mat Damage Taken 2030 | 33 377 1620 Core 491 | 12 72 407 Absorbed by Shields . | . . . Regen/Repaired (Parts) 21 | . 21 . Core Remaining (%) 80 | 95 66 . Volleys Fired 65 | 4 34 27 Largest 2 | 2 2 2 Hottest 100 | 40 40 100 Shots Fired 129 | 8 68 53 Gun 117 | 8 68 41 Cannon 12 | . . 12 Launcher . | . . . Special . | . . . Kinetic 76 | 8 68 . Thermal 53 | . . 53 Explosive . | . . . Electromagnetic . | . . . Robot Hit Streak 9 | 3 9 6 Robot Miss Streak 7 | 2 7 3 Penetration Max . | . . . Secondary Targets 3 | . 2 1 Max Gunslinging Chain 1 | . 1 1 Shots Hit Robots 90 | 5 37 48 Core Hits 45 | 2 21 22 Critical Kills . | . . . Critical Parts Destroyed 5 | . . 5 Critical Strikes 5 | . . 5 Smash 5 | . . 5 Melee Attacks 23 | . . 23 Impact 23 | . . 23 Slashing . | . . . Piercing . | . . . Sneak Attacks 1 | . . 1 Combat Hostiles . | . . . Follow-up Attacks . | . . . Damage Inflicted 1354 | 50 384 920 Guns 764 | 50 384 330 Cannons 165 | . . 165 Explosions . | . . . Melee 401 | . . 401 Ramming 24 | . . 24 Kinetic 434 | 50 384 . Thermal 495 | . . 495 Explosive . | . . . Electromagnetic . | . . . Impact 401 | . . 401 Slashing . | . . . Piercing . | . . . Highest Corruption . | . . . Average Corruption . | . . . Corruption Purged . | . . . Corruption Blocked . | . . . Overload Shots . | . . . Overflow Damage 138 | . . 138 Projectiles . | . . . Explosions . | . . . Melee 138 | . . 138 Knockbacks 2 | . . 2 Impact 2 | . . 2 Kinetic . | . . . Secondary . | . . . Self-Inflicted Damage 10 | . . 10 Shots . | . . . Rammed 14 | . . 14 Targets Rammed 14 | . . 14 Kicked . | . . . Crushed . | . . . Highest Temperature 159 | 6 . 159 Average Temperature 72 | 6 . 76 Received Heat Transfer 855 | 18 159 678 Siege Activations . | . . . Robots Corrupted . | . . . Combat Hostiles . | . . . Parts Fried 6 | . . 6 Impact Corruptions 7 | . . 7 Robots Melted . | . . . Combat Hostiles . | . . . Parts Melted . | . . . Heat Transferred 1009 | . . 1009 Parts Sabotaged . | . . . Parts Stolen . | . . . Parts Stripped . | . . . Power Chain Reactions . | . . . Missiles Intercepted . | . . . Alert | -11 -10 -9 ------- Run | Jun Mat Mat Peak Influence 270 | 20 223 270 Initial 93 | . 13 93 Average 129 | 4 86 196 Maximum Alert Level 1 | . 1 1 Low Security (%) 64 | 100 79 44 Level 1 35 | . 20 55 Level 2 . | . . . Level 3 . | . . . Level 4 . | . . . Level 5 . | . . . High Security . | . . . Max Security . | . . . Squads Dispatched 5 | . 3 2 Investigation 4 | . 3 1 Extermination . | . . . Reinforcement 1 | . . 1 Assault . | . . . Garrison . | . . . Intercept . | . . . Searches Triggered . | . . . Construction Impeded . | . . . Haulers Reinforced . | . . . Active Scanning Responses . | . . . Cargo Convoy Interrupts . | . . . Stealth | -11 -10 -9 --------- Run | Jun Mat Mat Distress Signals 3 | . . 3 Communications Jammed . | . . . Distress Signals . | . . . Times Spotted 29 | 1 9 19 Peak Tracking Total 6 | 1 3 6 Tactical Retreats . | . . . Traps | -11 -10 -9 ------- Run | Jun Mat Mat Traps Triggered 1 | . 1 . Indirectly . | . . . Trap Hack Attempts . | . . . Triggered . | . . . Disarmed . | . . . Reprogrammed . | . . . Reused . | . . . Traps Extracted . | . . . Installed . | . . . Triggered . | . . . Machines | -11 -10 -9 ---------- Run | Jun Mat Mat Machines Disabled . | . . . Max in Single Turn . | . . . Machines Repaired . | . . . Machines Sabotaged . | . . . Overloaded Fab Kills . | . . . Hacking | -11 -10 -9 --------- Run | Jun Mat Mat Machines Accessed 3 | . 2 1 Terminals 1 | . 1 . Fabricators . | . . . Repair Stations 1 | . 1 . Recycling Units 1 | . . 1 Scanalyzers . | . . . Garrison Access . | . . . Total Hacks 14 | . 8 6 Successful 8 | . 5 3 Failed 6 | . 3 3 Catastrophic . | . . . Database Lockouts . | . . . Manual . | . . . Terminals 3 | . 3 . Fabricators . | . . . Repair Stations 5 | . 5 . Recycling Units 6 | . . 6 Scanalyzers . | . . . Garrison Access . | . . . Terminal Hacks 2 | . 2 . Emergency Access Points 1 | . 1 . Hauler Manifests 1 | . 1 . Fabricator Hacks . | . . . Repair Station Hacks 3 | . 3 . Scan Component 2 | . 2 . Repair 1 | . 1 . Recycling Unit Hacks 3 | . . 3 Process 1 | . . 1 Report Inventory 1 | . . 1 Retrieve Components 1 | . . 1 Scanalyzer . | . . . Garrison Access Hacks . | . . . Unauthorized Hacks . | . . . Terminals . | . . . Fabricators . | . . . Repair Stations . | . . . Recycling Units . | . . . Scanalyzers . | . . . Garrison Access . | . . . Data Cores Recovered . | . . . Used . | . . . Hacking Detections 3 | . 2 1 Full Trace Events 3 | . 2 1 Feedback Events . | . . . Feedback Blocked . | . . . Robot Schematics Acquired . | . . . Robots Built . | . . . Authchips . | . . . Time . | . . . Total Robot Build Rating . | . . . Part Schematics Acquired . | . . . Parts Built . | . . . Authchips . | . . . Time . | . . . Total Part Build Rating . | . . . Parts Repaired 1 | . 1 . Time 26 | . 26 . Parts Recycled . | . . . Recycled Matter . | . . . Retrieved Matter . | . . . Retrieved Components 2 | . . 2 Parts Scanalyzed . | . . . Part Schematics Acquired . | . . . Parts Damaged . | . . . Bothacking | -11 -10 -9 ------------ Run | Jun Mat Mat Used RIF Installer . | . . . Robots Hacked . | . . . Non-combat . | . . . Combat . | . . . Robot Hacks Applied . | . . . Relay Couplers Released . | . . . Fabnet Peak Effective % . | . . . Robots Rewired . | . . . Allies Hacked . | . . . Hacks Repelled . | . . . Allies | -11 -10 -9 -------- Run | Jun Mat Mat Total Allies . | . . . Largest Group . | . . . Highest-Rated Group . | . . . Highest-Rated Ally . | . . . Total Orders . | . . . Ally Attacks . | . . . Total Damage . | . . . Kills . | . . . Allies Corrupted . | . . . Allies Melted . | . . . Intel | -11 -10 -9 ------- Run | Jun Mat Mat Robot Analysis Total . | . . . Derelict Logs Recovered . | . . . Drone Launches . | . . . Drone Recoveries . | . . . Exploration | -11 -10 -9 ------------- Run | Jun Mat Mat Turns Passed 824 | 90 344 390 Spaces Moved 388 | 65 192 131 Core 49 | 18 . 31 Treads . | . . . Legs 321 | 47 192 82 Wheels . | . . . Hover 18 | . . 18 Flight . | . . . Fastest Speed 50 | 50 120 76 Average Speed 125 | 100 120 146 Slowest Speed 250 | 120 120 250 Overloaded Moves . | . . . Propulsion Burnouts . | . . . Robots Hopped . | . . . Cave-ins Triggered . | . . . Exploration Rate (%) 17 | 8 30 14 Regions Visited 2 Branch Regions . Pre-discovered Areas . | . . . Known Exits Taken . | . . . Unknown Exits Taken 2 | 1 1 . Scrap Searched . | . . . Spaces Dug . | . . . Terrain Destroyed 3 | . . 3 Melee . | . . . Projectile 3 | . . 3 AOE . | . . . Terrain Rammed . | . . . Walls Destroyed . | . . . Machines Disabled . | . . . Actions | -11 -10 -9 --------- Run | Jun Mat Mat Total 555 | 82 245 228 Wait 9 | . . 9 Move 386 | 64 191 131 Hop . | . . . Pick Up 24 | 8 8 8 Fast Attach 3 | . 3 . Attach 20 | 6 1 13 Detach 1 | . . 1 Swap 4 | . 2 2 Drop 7 | . 6 1 Fire 65 | 4 34 27 Melee 23 | . . 23 Ram 13 | . . 13 Kick . | . . . Crush . | . . . Escape Stasis . | . . . Rewire . | . . . Trap . | . . . Miscellaneous . | . . . Route ------- -11/Junkyard -10/Materials -9/Materials History --------- Turn | Location | Event 2 | -11/Junkyard | Met Revision 17 58 | -11/Junkyard | Discovered new exit (range 8) 91 | -11/Junkyard | Entered Materials 262 | -10/Materials | Repaired Ion Engine 302 | -10/Materials | Build established: Mutant 322 | -10/Materials | Discovered new exit (range 15) 435 | -10/Materials | Entered another Materials area 435 | -9/Materials | Evolved 2 slots: Utility x2 676 | -9/Materials | Core integrity fell below 50% 710 | -9/Materials | Lost 11 parts (1p3n4u3w) 815 | -9/Materials | Core integrity fell below 20% 825 | -9/Materials | Core destroyed Last Messages --------------- Slammed into G-34 Mercenary. G-34 Mercenary destroyed. [Achievement: Fist Fight] Acquired 31 matter. Acquired Heat Sink. Backup Propulsion I destroyed. Slammed into S-10 Pest. Destabilizing: System interference. Heat Sink temporarily disabled. Ion Engine destroyed. Slammed into S-10 Pest. Backup Propulsion I destroyed. Slammed into S-10 Pest. Destabilizing: Core damaged (-8). Slammed into S-10 Pest. Heat Sink destroyed. Slammed into S-10 Pest. Destabilizing: Core damaged (-12). Slammed into S-10 Pest. Destabilizing: Core damaged (-16). Map ----- +----------------------------------------------------+ | ???????????????????????????????????#######???????? | | ??????????????????????????????????? #???????? | | ????????????????????????????????# """"" #???????? | | ????????????????????????????????# """"" #???????? | | ????????????????????????????????# """"" #???????? | | ???????????????????????????? ???# #???##### | | ???????????????????????????? # """"" #???# | | ???????????????????????? ?? # """"" #???# | | ???????????????????????? ? # """"" #???# | | ???????????????????????? # #???# | | ????????????????????????? ?#####+######## | | ????????????????????#+#??? ?????# +* | | ????????????????????# #???##+##????# ####### | | ???????????""???????# #???# ###### #?????# | | ???????????? ####### ##### #?????# | | ????????????? + % % ####??##### | | ??????????????# """#??????? | | ????########+## % Y"#??????? | | ????# % % %% """#??????? | | ????+ % %%% ####??????? | | ????# ###### #?????????? | | ????###+####+## ###+####???# % #?????????? | | ?????????? ??## ####%#?# #???# #?????????? | | ???????? ?????# ####s### #???# %##????????? | | ?????? ??????# # %%ss%# #???# ##????????? | | ?????# ????????# # %""@# #???# ?????????? | | ???????????????# # """# #???# ????????? | | ???????????????# # R"# #???# ???????? | | ???????????????# # """# #???##### ##??????? | | ???????????????# + # #???###?? #???????? | | ???????????????# #############???????? #???????? | | ???????????????# #???????????????????? #???????? | | ???????????????# #?????????????????????#???????? | | ???????????????# ??????????????????????????????? | | ???????????????+ ??????????????????????????????? | | ???????????????# ??????????????????????????????? | | ?????????????????????????????????????????????????? | | ?????????????????????????????????????????????????? | | ?????????????????????????????????????????????????? | | ?????????????????????????????????????????????????? | | ?????????????????????????????????????????????????? | | ?????????????????????????????????????????????????? | | ?????????????????????????????????????????????????? | | ?????????????????????????????????????????????????? | | ?????????????????????????????????????????????????? | | ?????????????????????????????????????????????????? | | ?????????????????????????????????????????????????? | | ?????????????????????????????????????????????????? | | ?????????????????????????????????????????????????? | | ?????????????????????????????????????????????????? | +----------------------------------------------------+ Best States ------------- Heat Dissipation 50 Energy Generation 10 Energy Capacity 250 Matter Stores 300 Matter Capacity 300 Sight Range 16 Robot Scan Range 15 Terrain Scan Density 10 Armor Coverage 300 Evasion (%) 55 Item Schematics ----------------- None Robot Schematics ------------------ None Fabricated ------------ Nothing Alien Tech Used ----------------- None Achievements -------------- Fist Fight Hey, That's Mine! Challenges ------------ None Game ------ Seed BattleDeepBeam Manual? 0 Play Time 00:15:31 Cumulative 1.2 hours Start 2024.01.27 @ 23:13:01 End 2024.01.27 @ 23:28:30 Sessions 1 Manual Loads 0 Difficulty Rogue Special Mode None Game No. 2 Rogue 2 Adventurer 0 Explorer 0 Win Type - Total 0 Types 0/0/0/0/0/0/0/0/0 Lore% 1 Gallery% 3 Achievement% 5 Wizard Run 0 Options --------- ASCII 0 Keyboard 0 Movement Mouse Keybinds 0 Fullscreen 1 Font 18/X11 Map View 76x50 Tactical HUD 0 Map Filters NONE Filters NONE Steam 1 RUN: 8a6387c6-4b65-4682-bdf2-91b1965e7f1b